{"text_format":"1","workbook":"xlsx","n_sheets":4,"sheets":["Sheet1","الانشطة","إحصائيات","تقرير النشاط"],"not_rendered":{"charts":1,"images":1,"macros":1,"external_links":0,"defined_names":2,"comments":0,"pivot_tables":0},"unopened":[],"bounds":{"document_bytes":16777216,"sheet_cells":100000,"rows_first":2000,"rows_last":500,"rows_between":2000,"halvings":0,"cell_chars":16384,"cell_head_chars":4096},"cells_cut":0,"cells_raw":0,"read":"whole","date_system":"1900"}

{"sheet":"Sheet1","index":0,"n_rows":508,"n_cols":17,"rows_kept":508,"cut":false,"hidden":false,"merged":[[3,6,3,7],[6,3,6,9],[7,8,7,9]]}
[]
[]
[]
[null,null," من تاريخ","2024-01-03","الى تاريخ","2024-05-01","مفتاح"]
[]
[]
[null,null,"العنوان","تقرير  بالنشاط "]
["م","الرقم","تاريخ النشاط","اسم النشاط","منفذ النشاط","الجهة المنظمة","موعد النشاط","مكان النشاط","رابط النشاط",null,"ملاحظات","مفتاح"]
[{"$f":"IF(ISBLANK(B9),\"\",SUBTOTAL(3,B$9:B9))","v":1},1,"2024-01-03","محاضرة \"سكان مصر وتحديات المستقبل\"","ندوات وأمسيات المجلس الأعلى للثقافة","لجنة الجغرافيا والبيئة","5م","5م المجلس",null,null,"https://youtu.be/6gMb5z82lE0https://fb.watch/pmj9a62K7R/","السكان",null,"ندوات وأمسيات",null,null,{"$f":"COUNTIF(E9:E500,\"ندوات وأمسيات\")","v":0}]
[2,2,"2024-01-03","ندوة \"منصات التواصل الاجتماعي بين المصداقية والتضليل\"","ندوات وأمسيات المجلس الأعلى للثقافة","لجنة الثقافة الرقمية والبنية المعلوماتية الثقافية","7م","7م أونلاين",null,null,"https://youtu.be/CQPlTi7aIgAhttps://fb.watch/ps_iH1Wl6H/","التواصل"]
[3,3,"2024-04-04","ندوة \"مرآه ثقافية لتاريخ وطن - شهادات ودراسات\"مناقشة العدد 400 من مجلة الثقافة الجديدةإحتفالية بمناسبة صدور العدد 400 من مجلة الثقافة الجديدة","ندوات وأمسيات المجلس الأعلى للثقافة","أمانة المؤاتمرت","5م","5م المجلس",null,null,"https://youtu.be/st-F9nQCHO0https://fb.watch/prA3Nq5H7D/","مناقشة"]
[4,4,"2024-01-11","ندوة \"صورة العربي في أدب الأطفال العبري - العنصرية في مواجهة البراءة\"","ندوات وأمسيات المجلس الأعلى للثقافة","لجنة فنون الطفل","5م","5م الفنون",null,null,"https://youtu.be/2DCAMrGbzpUhttps://fb.watch/pzBYyrg_sF/","طفل"]
[5,5,"2024-01-14","\"أمسية شعرية فلسطين في عيون الشعراء العرب\"","ندوات وأمسيات المجلس الأعلى للثقافة","لجنة الشعر",5,"5:30م المجلس"]
[6,6,"2024-01-15","ندوة \"إستخدام الذكاء الإصطناعي لتوثيق التراث\"","ندوات وأمسيات المجلس الأعلى للثقافة","لجنة الثقافة الرقمية والبنية المعلوماتية الثقافية بالتعاون مع المنظمة العربية للتنمية الإدارية وبالتعاون مع مركز جمعة الماجد للثقافة والتراث","12ظ","12ظ أونلاين",null,null,"https://youtu.be/4JYBptUcNU0https://fb.watch/pMuhJTT7aH/","الذكاء الاصطناعي"]
[7,7,"2024-01-15","\"قراءة في كتاب المرايا المتجاورة .. تأليف أ.د. جابر عصفور\" - أمسية ثقافية","ندوات وأمسيات المجلس الأعلى للثقافة","أمانة المؤتمرات بالتعاون مع صالون جابر عصفور الثقافي","5م","5م المجلس",null,null,"https://youtu.be/vy5PVCz-ACkhttps://fb.watch/pC9kwnQa3t/"]
[8,8,"2024-01-16","\"منتدى الثقافة القانونية\"ندوة \"الوطنية والانتماء\"","ندوات وأمسيات المجلس الأعلى للثقافة","لجنة ثقافة القانون والمواطنة وحقوق الإنسان","5م","5م المجلس",null,null,"https://youtu.be/Np_7RSaVzLchttps://fb.watch/pMueVxkUH6/"]
[9,9,"2024-01-16","ندوة \"الوعي الوطني والتحديات والمخاطر الراهنة\"","ندوات وأمسيات المجلس الأعلى للثقافة","لجنة التربية وعلم النفس","6م","6م المؤتمرات",null,null,"https://youtu.be/dv1849m8pHchttps://fb.watch/pMud2eD_8F/"]
[10,10,"2024-01-17","أمسية ثقافية بعنوان\"تواصل\"","ندوات وأمسيات المجلس الأعلى للثقافة","لجنة السرد القصصي والروائي","5م","5م المؤتمرات",null,null,"https://youtu.be/qMEgKy-w5ckhttps://fb.watch/pMu8OUYqnq/","تواصل"]
[11,11,"2024-01-17","مائدة مستديرة بعنوان \"الإعلام ودعم الفعاليات الثقافية ... معرض الكتاب نموذجا\"","ندوات وأمسيات المجلس الأعلى للثقافة","لجنة الإعلام","5م","5م المجلس",null,null,"https://youtu.be/xB2x37-Vawchttps://fb.watch/pMua__E5Ta/"]
[12,12,"2024-01-01","ورشة العمل التدريبية الإقليمية حول \"إعداد قوائم الحصر للتراث وملفات الترشيح على قوائم التراث في العالم الإسلامي والتراث العالمي\"","دورة تدريبية","أمانة المؤتمرات بالتعاون مع اللجنة الوطنية المصرية للتربية والعلوم والثقافة لليونسكو","طول","طول اليوم المجلس - المؤتمرات"]
[13,13,"2024-01-21","ندوة \"نجيب محفوظ والترجمة\"بمناسبة الاحتفال بذكرى ميلاد الأديب المصري الكبير نجيب محفوظ","ندوات وأمسيات المجلس الأعلى للثقافة","لجنة الترجمة بالتعاون مع لجنة الدراسات الأدبية والنقدية","6م","6م المجلس",null,null,"https://youtu.be/UjJytpa0maMhttps://fb.watch/pMu6GMo7oH/"]
[14,14,"2024-01-22","ندوة: \"حوار ثقافي \"أونلاين","ندوات وأمسيات المجلس الأعلى للثقافة","لجنة السرد القصصي والروائي","12ظ","12ظ أونلاين",null,null,"https://youtu.be/G99pajquZe4https://fb.watch/pMuLu-vmYW/","حوار"]
[15,15,"2024-01-22","محاضرة \"مخاطر طمس الهوية التاريخية للقدس وغزة بين تدمير الحجر وتهجير البشر\"","ندوات وأمسيات المجلس الأعلى للثقافة","لجنة التاريخ والآثار","5م","5م المجلس"]
[16,16,"2024-01-23","ندوة \"الثقافة والتقدم\"","ندوات وأمسيات المجلس الأعلى للثقافة","لجنة الفلسفة وعلم الاجتماع والأنثروبولوجيا","12 ظالفنون","12ظالفنون"]
[17,17,"2024-01-24","ندوة \"الذكاء الإصطناعي وتشكيل الوعي المجتمعي\"","ندوات وأمسيات المجلس الأعلى للثقافة","لجنة تنمية الثقافة العلمية و التفكير الابتكاري بالتعاون مع لجنة الثقافة الرقمية و البنية المعلوماتية الثقافية","6م","6م المجلس",null,null,"https://youtu.be/mJ-F77EEQOohttps://fb.watch/pVLNi9rm27/","الذكاء الاصطناعي"]
[18,18,"2024-01-27","ندوة *\"الصناعات الثقافية والتنمية المستدامة\"*","ندوات وأمسيات المجلس الأعلى للثقافة","أمانة المؤتمرات","12ظ","12ظ قاعة المؤسسات الثقافية - بلازا ١معرض الكتاب",null,null,"https://fb.watch/qA28DPivXU/https://youtu.be/75lJGhTz09E","التنمية المستدامة"]
[19,19,"2024-01-28","ندوة \"التوثيق والنشر للفنون التشكيلية والعمارة\"","ندوات وأمسيات المجلس الأعلى للثقافة","أمانة المؤتمرات","12ظ","12ظ قاعة المؤسسات الثقافية - بلازا ١معرض الكتاب",null,null,"https://youtu.be/nvyT_xpKyzQhttps://fb.watch/pVMfKD3Bn1/"]
[20,20,"2024-01-29","ندوة \"الذكاء الاصطناعى والتحول الرقمي - الفرص والتحديات\"","ندوات وأمسيات المجلس الأعلى للثقافة","أمانة المؤتمرات","12ظ","12ظ قاعة المؤسسات الثقافية - بلازا ١معرض الكتاب",null,null,"https://youtu.be/MBh9ljaJv-Ihttps://fb.watch/pVL_Y7dY7L/","الذكاء الاصطناعي"]
[21,21,"2024-01-30","حفل إطلاق العدد الأول من مجلة \" ثقافة قانونية \" دورية الكترونية متخصصة","ندوات وأمسيات المجلس الأعلى للثقافة","لجنة ثقافة القانون والمواطنة وحقوق الإنسان","5م","5م الفنون",null,null,"https://youtu.be/aUcw9sfVHAchttps://fb.watch/pVLP2e7b1d/","ثقافة قانونية"]
[22,22,"2024-01-30","\"مبادرة وعي بالقانون\" - الحلقة الأولىالمستشار الدكتور/ خالد القاضي","سلسلة بعنوان مبادرة وعي بالقانون","لجنة ثقافة القانون والمواطنة وحقوق الإنسان","8م","8م أونلاين",null,null,"https://youtu.be/hKGuX3b7Z7ohttps://fb.watch/pVMN5ej0za/","مبادرة وعي"]
[23,23,"2024-01-31","ندوة \"دور الملكية الفكرية في تنمية المشروعات الناشئة لدعم الإقتصاد المصري\"","ندوات وأمسيات المجلس الأعلى للثقافة","لجنة حماية الملكية الفكرية بالتعاون مع لجنة  الإقتصاد والعلوم السياسية","6م","6م المجلس",null,null,"https://youtu.be/1PbgIr-rfIchttps://fb.watch/pX3KQopAIb/"]
[24,24,"2024-01-31","مجلة ثقافة قانونية - العدد الأول","دورية الكترونية متخصصة","لجنة ثقافة القانون والمواطنة وحقوق الإنسان","أو نلاين","أونلاين",null,null,"رابط مجلة ثقافة قانونية كومبيوترhttps://online.flipbuilder.com/xdweq/tiow/رابط مجلة ثقافة قانونية أندرويدhttps://online.flipbuilder.com/xdweq/imkg/رابط مجلة ثقافة قانونية آيفونhttps://online.flipbuilder.com/xdweq/bfev/رابط مجلة ثقافة قانونية جوجل درايف https://drive.google.com/file/d/13jmuSyfa7qtjhYG6ALGG3rF8RLA_BADq/view?fbclid=IwAR0lz-Kj_u6ren5Vaw5mjGxfWN1i2g1mz-POzJfq1WZW5lD6GClTM3cXz_8"]
[25,25,"2024-02-05","حلقة نقاشية حول \"إعادة إنتاج التراث الشعبي\"","ندوات وأمسيات المجلس الأعلى للثقافة","لجنة التراث الثقافي غير المادي","5م","5م المجلس",null,null,"https://youtu.be/eEvEgZzopMIhttps://fb.watch/q1M2AUPqmQ/","التراث الشعبي"]
[26,26,"2024-02-06","\"الدراسات المستقبلية\"دكتور/ محمد أحمد عدوي الحلقة السابعة والأربعون","سلسلة ثقافة تك","لجنة الثقافة الرقمية والبنية المعلوماتية الثقافية بالتعاون مع أمانة المؤتمرات","7مأونلاين","7مأونلاين",null,null,"https://youtu.be/klkOipgK9K8https://fb.watch/q4hI2laRdo/"]
[27,27,"2024-02-06","\"مبادرة وعي بالقانون\" - الحلقة الثانية المستشار/ نير عثمان","سلسلة بعنوان مبادرة وعي بالقانون","لجنة ثقافة القانون والمواطنة وحقوق الإنسان","8مأونلاين","8مأونلاين",null,null,"https://youtu.be/wwjuCt-YxO4https://fb.watch/q4hIMSGD6I/","مبادرة وعي"]
[28,28,"2024-02-07","ندوة \"رؤية مقترحة للتعليم الجغرافي والتربية البيئية في المناهج الدراسية\"","ندوات وأمسيات المجلس الأعلى للثقافة","لجنة الجغرافيا والبيئة بالتعاون مع لجنة التربية وعلم النفس","5م","5م المجلس",null,null,"https://youtu.be/ZQUip5XLIFEhttps://fb.watch/q4hJQUEyHv/"]
[29,29,"2024-02-08","ندوة \"تقنيات و أدوات الذكاء الاصطناعي و حماية البيانات الشخصية\"","ندوات وأمسيات المجلس الأعلى للثقافة","لجنة الشباب بالتعاون مع لجنة الثقافة الرقمية و البنية المعلوماتية الثقافية","4م","4م المجلس",null,null,"https://youtu.be/cKWm_voB5wMhttps://fb.watch/q8eRG1P_2_/","الذكاء الاصطناعي"]
[30,30,"2024-02-11","ندوة \"الذكاء الاصطناعي والترجمة\"","ندوات وأمسيات المجلس الأعلى للثقافة","لجنة الترجمة بالتعاون مع لجنة الثقافة الرقمية والبنية المعلوماتية الثقافية","6م","6م المجلس",null,null,"https://youtu.be/0zPMiStiROshttps://fb.watch/qbepIzuSUy/","الذكاء الاصطناعي"]
[31,31,"2024-02-11","أمسية شعرية \"إبداعات الشباب\"","ندوات وأمسيات المجلس الأعلى للثقافة","لجنة الشعر","6م","6م الندوات",null,null,"https://youtu.be/C8RF2nnz9achttps://fb.watch/qberhxGZzO/","شباب"]
[32,32,"2024-02-13","\"محاضرة \"الذكاء الاصطناعي ونشر الأخبار الكاذبة\"دكتور/ فتحي حسين عامرالحلقة الثامنة والأربعون","سلسلة ثقافة تك","لجنة الثقافة الرقمية والبنية المعلوماتية الثقافية بالتعاون مع أمانة المؤتمرات","7مأونلاين","7مأونلاين",null,null,"https://youtu.be/NXEsVSybUIohttps://fb.watch/qcyp55s7ey/","الذكاء الاصطناعي"]
[33,33,"2024-02-13","\"مبادرة وعي بالقانون\" - الحلقة الثالثةالمستشار/ جميل حليم","سلسلة بعنوان مبادرة وعي بالقانون","لجنة ثقافة القانون والمواطنة وحقوق الإنسان","8مأونلاين","8مأونلاين",null,null,"https://youtu.be/xcUjGlg2WIMhttps://fb.watch/qcyn0vmnaJ/","مبادرة وعي"]
[34,34,"2024-02-14","مائدة مستديرة \"المكاتب الإعلامية والثقافية فى الخارج بين الواقع والمأمول\"","ندوات وأمسيات المجلس الأعلى للثقافة","لجنة الإعلام بالتعاون مع لجنة تطوير الإدارة الثقافية وتشريعاتها","1ظ الفنون","1ظالفنون",null,null,"https://fb.watch/qA1vHzscOQ/https://youtu.be/YQoX5L8viU8"]
[35,35,"2024-02-14","ندوة \"دور المنظمات الدولية والإقليمية في القضايا العالمية .. القضية الفلسطينية نموذجًا\"","ندوات وأمسيات المجلس الأعلى للثقافة","لجنة الإقتصاد والعلوم السياسية","6م","6م الندوات",null,null,"https://fb.watch/qz_FWwQkBB/https://youtu.be/x0an6DqkXoQ"]
[36,36,"2024-02-14","محاضرة بعنوان \"تأثير التكنولوجيا على إدارة الأزمات في الإقليم\"","ندوات وأمسيات المجلس الأعلى للثقافة","لجنة الثقافة الرقمية والبنية المعلوماتية الثقافية","6م","6م المؤتمرات",null,null,"https://fb.watch/qz_ERzEuep/https://youtu.be/z0pWiU5hGfw"]
[37,37,"2024-02-18","ندوة \"دور الهوية المكانية والبيئية في تأصيل الانتماء لدى الشباب\"","ندوات وأمسيات المجلس الأعلى للثقافة","لجنة الجغرافيا والبيئة بالتعاون مع كلية الدراسات الإنسانية – جامعة الأزهر","11ص","11ص كلية الدراسات الإنسانية - بنات - جامعة الأزهر",null,null,"https://fb.watch/qz_ODhtaK0/https://youtu.be/jE12ivQ_Dyo","شباب"]
[38,38,"2024-02-18","ملتقى بعنوان \"شباب صنع في مصر.. نحو مستقبل مصر\"","ندوات وأمسيات المجلس الأعلى للثقافة","لجنة الشباب","11ص","11ص مجمع عمال مصر - مدينة 6 أكتوبر",null,null,"https://fb.watch/qz-7pA_rFt/https://youtu.be/xr7VQDFmC3s","شباب"]
[39,39,"2024-02-18","ندوة \"مقارب للأدب الفلسطيني\"","ندوات وأمسيات المجلس الأعلى للثقافة","لجنة السرد القصصي والروائي","1م","1م المجلس",null,null,"https://fb.watch/qA5KFKEgoG/https://youtu.be/i20BHgDHJOU"]
[40,40,"2024-02-18","حلقة نقاشية بعنوان \"المؤسسات الثقافية الرسمية : إشكالية تطوير الموارد البشرية\"","ندوات وأمسيات المجلس الأعلى للثقافة","لجنة تطوير الإدارة الثقافية وتشريعاتها","5م","5م الفنون","https://fb.watch/qz-2Yyk8pe/","https://youtu.be/HFre_torYYg","https://fb.watch/qz-2Yyk8pe/\nhttps://youtu.be/HFre_torYYg"]
[41,41,"2024-02-19","محاضرة بعنوان \"الشخصية المصرية وبداية التكوين\"","ندوات وأمسيات المجلس الأعلى للثقافة","لجنة التاريخ والآثار","11ص","11ص كلية التربية - جامعة عين شمس",null,null,"https://fb.watch/qz-8bLSMYt/https://youtu.be/0tHQ_745JSI"]
[42,42,"2024-02-19","ندوة: \"حوار ثقافي \"أونلاين","ندوات وأمسيات المجلس الأعلى للثقافة","لجنة السرد القصصي والروائي","12ظ","12ظ أونلاين",null,null,"https://fb.watch/qz-6yUxVYW/https://youtu.be/JjB5tEeIUL4","حوار"]
[43,43,"2024-02-19","ندوة \"التراث الرقمي بين الواقع والمأمول\"","ندوات وأمسيات المجلس الأعلى للثقافة","لجنة الكتاب والنشر بالتعاون مع بيت التراث المصري ولجنة التراث الثقافي الغير مادي ولجنة حماية الملكية الفكرية ولجنة الثقافة الرقمية والبنية المعلوماتية الثقافية","5م","5م المجلس",null,null,"https://fb.watch/qz-9qctSSp/https://youtu.be/NqB3tU5NREE","التراث الرقمي"]
[44,44,"2024-02-01T20:22:00","\"المنتدى العالمي الثالث لثقافة السلام العادل\"","ندوات وأمسيات المجلس الأعلى للثقافة","أمانة المؤتمرات بالتعاون مع مؤسسة عبد العزيز سعود البابطين الثقافية","طوال","طوال اليوم فندق والدورف أستوريا القاهرة هليوبوليس"]
[45,45,"2024-02-20","\"منتدى الثقافة القانونية\"ندوة \"مواجهة الشائعات وتزييف الوعي\"","ندوات وأمسيات المجلس الأعلى للثقافة","لجنة ثقافة القانون والمواطنة وحقوق الإنسان","6م","6م المجلس",null,null,"https://fb.watch/qA1NqSYK2I/https://youtu.be/sDDB6N6mvR0"]
[46,46,"2024-02-20","\"مبادرة وعي بالقانون\" - الحلقة الرابعةالمستشارة/ رشا الشنواني","سلسلة بعنوان مبادرة وعي بالقانون","لجنة ثقافة القانون والمواطنة وحقوق الإنسان","8م","8م أونلاين",null,null,"https://fb.watch/qz-Fk54XfU/https://youtu.be/LMtT6L1J29g"]
[47,47,"2024-02-21","ندوة : (حقوق مصر في حماية حضارتها وفق قانون الملكية الفكرية)","ندوات وأمسيات المجلس الأعلى للثقافة","لجنة حماية الملكية الفكرية بالتعاون مع لجنة التاريخ والآثار","6م","6م الفنون",null,null,null,"ملكية فكرية"]
[48,48,"2024-02-21","أمسية ثقافية بعنوان\"تواصل\"","ندوات وأمسيات المجلس الأعلى للثقافة","لجنة السرد القصصي والروائي","5م","5م المؤتمرات",null,null,"https://fb.watch/qA0fttHjk4/https://youtu.be/bzoXG19kN9A","تواصل"]
[49,49,"2024-02-21","ندوة \"التقاطع بين العلوم والموسيقى من العصور القديمة حتى الوقت الحاضر\"","ندوات وأمسيات المجلس الأعلى للثقافة","لجنة تنمية الثقافة العلمية والتفكير الإبتكاري بالتعاون مع لجنة الموسيقى و الأوبرا والبالية","6م","6م المجلس",null,null,"https://fb.watch/qA5I2wo7ih/https://youtu.be/GpOgHIB81BY"]
[50,50,"2024-02-21","أمسية للاحتفاء بالناقد والشاعر الفلسطيني / إبراهيم السعافين ضمن فعاليات سلسلة الاحتفاء بكبار النقاد وعلماء اللغة المصريين والعرب","ندوات وأمسيات المجلس الأعلى للثقافة","لجنة الدراسات الأدبية والنقدية واللغوية","7م","7م أونلاين",null,null,"https://fb.watch/qA0ewgVr7R/https://youtu.be/30BBmILUuEg"]
[51,51,"2024-02-25","ندوة \"الاحتفال باليوم العالمى للقصة القصيرة\"","ندوات وأمسيات المجلس الأعلى للثقافة","لجنة السرد القصصي والروائي","12ظ","12ظ بمقر صالون جامعة الإسكندرية",null,null,"https://fb.watch/qA1FSK9x2g/https://youtu.be/OaLURs5iBms"]
[52,52,"2024-02-25","أمسية مصر - بنجلاديش .. علاقات ثقافية","ندوات وأمسيات المجلس الأعلى للثقافة","المجلس الأعلى للثقافة بالتعاون مع قطاع العلاقات الثقافية الخارجية وبالتعاون مع وزارة الخارجية ( النادي الدبلوماسي المصري)","5م","5م المجلس",null,null,"https://fb.watch/qA1Ey2SRcH/https://youtu.be/VjAyPRYmhKA","علاقات ثقافية"]
[53,53,"2024-02-26","الاحتفاء بالمكرمين من ملتقى الشارقة الثقافيضمن مبادرة \"ملتقى الشارقة للتكريم الثقافي","ندوات وأمسيات المجلس الأعلى للثقافة","أمانة المؤتمرات بالتعاون مع دائرة الشارقة للثقافة","11ص","11ص المجلس",null,null,"https://fb.watch/qA1umnq14w/https://youtu.be/zPujmJFNbJg"]
[54,54,"2024-02-27","ندوة \"القوة الناعمة و تأثيرها في بنية المجتمع\"","ندوات وأمسيات المجلس الأعلى للثقافة","لجنة الفلسفة وعلم الاجتماع والانثربولوجيا","12ظ","12ظ قاعة المؤتمرات بكلية الآداب -جامعة عين شمس",null,null,"https://fb.watch/qA2cVF66BE/https://youtu.be/-uFarbWnJAk"]
[55,55,"2024-02-02T03:28:00","الملتقى الأول للتراث الثقافي القنائي غير المادي بين الثبات والتغيير","ندوات وأمسيات المجلس الأعلى للثقافة","لجنة التراث الثقافي غير المادي \"الفنون الشعبية\" بالتعاون مع وزارة التضامن الاجتماعي وبالتعاون مع جمعية تنمية المجتمع للمرأة الريفية والحضرية بقنا وبالتعاون مع المجلس القومي للمرأة","قصر","قصر ثقافة قنا"]
[56,56,"2024-02-27","\"مبادرة وعي بالقانون\" - الحلقة الخامسةالأستاذ/ بدر الطويل","سلسلة بعنوان مبادرة وعي بالقانون","لجنة ثقافة القانون والمواطنة وحقوق الإنسان","8م","8م أونلاين",null,null,"https://fb.watch/qA5y2syVjb/https://youtu.be/KZzd3BFcHGg"]
[57,57,"2024-02-28","ندوة \"الشباب وتعزيز الثقافة والهوية الوطنية.. معًا نحو توطين العدالة الثقافية\"","ندوات وأمسيات المجلس الأعلى للثقافة","لجنة الشباب بالتعاون مع مجلس الشباب المصري","4م","4م المؤتمرات",null,null,"https://fb.watch/qA5LYGdLSE/https://youtu.be/AzVu-1XtNe4","شباب"]
[58,58,"2024-02-28","مائدة مستديرة بعنوان \"مدونة المصطلحات الإعلامية بين السياسة والاقتصاد\"","ندوات وأمسيات المجلس الأعلى للثقافة","لجنة الإعلام بالتعاون مع لجنة الاقتصاد والعلوم السياسية","1ظ","1ظ الفنون",null,null,"https://fb.watch/qJe-KAU25Q/https://youtu.be/0kyOIirShDk"]
[59,59,"2024-02-29","أمسية مصر - بيلاروس .. علاقات ثقافية","ندوات وأمسيات المجلس الأعلى للثقافة","المجلس الأعلى للثقافة بالتعاون مع قطاع العلاقات الثقافية الخارجية وبالتعاون مع وزارة الخارجية (المعهد الدبلوماسي)","5م","5م المجلس",null,null,"https://fb.watch/qA8QWeSc5D/https://youtu.be/0SilUxQvs8c"]
[60,59,"2024-03-03","ندوة \"ظاهرة العنف : الأسباب والعلاج\"","ندوات وأمسيات المجلس الأعلى للثقافة","لجنة التربية و علم النفس","12ظ","12ظ كلية التربية جامعة عين شمس - قاعة مجلس الكلية",null,null,"https://fb.watch/qJe_PWsKW5/https://youtu.be/t-2RxiIipM4"]
[61,59,"2024-03-03","حلقة نقاشية بعنوان جهود الحكومة في مجال الإصلاح الإداري","ندوات وأمسيات المجلس الأعلى للثقافة","لجنة تطوير الإدارة الثقافية و تشريعاتها","5م","5م المجلس",null,null,"https://fb.watch/qJf1HLnBWu/https://youtu.be/lIrAIdtrMfo"]
[62,59,"2024-05-03","أمسية مصر - سلوفينيا.. علاقات ثقافية","ندوات وأمسيات المجلس الأعلى للثقافة","المجلس الأعلى للثقافة بالتعاون مع قطاع العلاقات الثقافية الخارجية وبالتعاون مع وزارة الخارجية ( النادي الدبلوماسي المصري)","5م","5م المجلس",null,null,"https://fb.watch/qJeXJ9E9lC/https://youtu.be/D08qkAhjsOU"]
[63,59,"2024-03-01T04:05:00","مؤتمر مصر ونهر النيل عبر العصور","ندوات وأمسيات المجلس الأعلى للثقافة","لجنة التاريخ بالمجلس الأعلى للثقافة بالتعاون مع مركز البحوث والدراسات التاريخية وقسم التاريخ بكلية الآداب جامعة القاهرة","اليوم","اليوم الأول: كل قاعات المجلس الأعلى للثقافةاليوم الثاني: بمقر كلية الآداب جامعة القاهرة",null,null,"https://www.youtube.com/playlist?list=PL3bljYjHgo5xGgsQLDoMaospApDNrlDl_"]
[64,59,"2024-03-06","ندوة \"الإدارة البيئية في المؤسسات الصحفية\"","ندوات وأمسيات المجلس الأعلى للثقافة","لجنة الجغرافيا والبيئة بالتعاون مع مؤسسة الأهرام",12,"12:30ظ مؤسسة الأهرام - قاعة هيكل",null,null,"https://fb.watch/qJeZ-H2mee/https://youtu.be/jqg3xq9MoZA","بيئة"]
[65,59,"2024-03-07","ندوة \"العلم في مواجهة التطرف والإرهاب\"","ندوات وأمسيات المجلس الأعلى للثقافة","لجنة مواجهة التطرف والإرهاب بالتعاون مع لجنة تنمية الثقافة العلمية والتفكير الابتكاري","5م","5م الندوات",null,null,"https://fb.watch/qJeWSAsYtL/https://youtu.be/6hES3-Pm-eA","إرهاب"]
[66,59,"2024-03-07","محاضرة بعنوان \"مفهوم الإبادة أصوله ونظرياته و أهميته المعاصرة\"","ندوات وأمسيات المجلس الأعلى للثقافة","لجنة التراث الثقافي غير المادي","6م","6م المجلس",null,null,"https://fb.watch/qJeV0EZQ7G/https://youtu.be/4HOUTLSurcM"]
[67,59,"2024-03-07","\"مبادرة وعي بالقانون\" - الحلقة السادسةالدكتور/ أحمد رفعت","سلسلة بعنوان مبادرة وعي بالقانون","لجنة ثقافة القانون والمواطنة وحقوق الإنسان","8م أونلاين","8م أونلاين",null,null,"https://fb.watch/qJk6xBjKLF/https://youtu.be/vVKTfGrASSs","مبادرة"]
[68,59,"2024-03-10","نساء مبدعات ... أمسية للاحتفاء بالمبدعات المصريات بمناسبة اليوم العالمي للمرأة  لتكريم مبدعات مصر الحاصلات على جوائز الدولة والفائزات بمسابقات المجلس الأعلى للثقافة لعام ٢٠٢٣","ندوات وأمسيات المجلس الأعلى للثقافة","أمانة المؤتمرات","5م","5م المؤتمرات",null,null,"https://youtu.be/qZFZaaS5QBwhttps://fb.watch/r2qpbgsL0I/","مرأة"]
[69,59,"برنامج شهر رمضان"]
[70,59,"من 11/03/2024إلى 9/04/2024","مبادرة \"ماذا تعرف عن\"مبادرة رمضانية يومية:ماذا تعرف عن مساجد من مصر؟","مبادرة رمضانية يومية: ماذا تعرف عن مساجد من مصر؟","لجنة الفنون التشكيلية والعمارة","9م","9م كل يوم طول شهر رمضان أونلاين",null,null,"https://www.youtube.com/playlist?list=PL3bljYjHgo5xcxpRf42mbhGP46QVmoSzb"]
[71,59,"2024-03-11","مبادرة \"ماذا تعرف عن\"مسجد عمرو بن العاص الحلقة الأولى","مبادرة رمضانية يومية: ماذا تعرف عن مساجد من مصر؟","لجنة الفنون التشكيلية والعمارة","9م","9م أونلاين",null,null,"https://youtu.be/W2ghUMUvgsAhttps://fb.watch/rc_tvVfm1e/"]
[72,59,"2024-03-12","\"مبادرة وعي بالقانون\" - الحلقة السابعة النائبة/ دينا عبد الكريم","سلسلة بعنوان مبادرة وعي بالقانون","لجنة ثقافة القانون والمواطنة وحقوق الإنسان","8م","8م أونلاين",null,null,"https://fb.watch/r2pC7apT2I/https://youtu.be/T7M6GfjLBvk"]
[73,59,"2024-03-12","مبادرة \"ماذا تعرف عن\"مسجد أحمدبن طولونالحلقة الثانية","مبادرة رمضانية يومية: ماذا تعرف عن مساجد من مصر؟","لجنة الفنون التشكيلية والعمارة","9م","9م أونلاين",null,null,"https://youtu.be/rJKrDs62n8shttps://fb.watch/rc_sy7_m8I/"]
[74,59,"2024-03-13","مبادرة \"ماذا تعرف عن\"الجامع الأزهرالحلقة الثالثة","مبادرة رمضانية يومية: ماذا تعرف عن مساجد من مصر؟","لجنة الفنون التشكيلية والعمارة","9م","9م أونلاين",null,null,"https://youtu.be/lnHy4knMYoshttps://fb.watch/rc_rATZvKt/"]
[75,59,"2024-03-14","مبادرة \"ماذا تعرف عن\"مسجد الحاكم بأمر اللهالحلقة الرابعة","مبادرة رمضانية يومية: ماذا تعرف عن مساجد من مصر؟","لجنة الفنون التشكيلية والعمارة","9م أونلاين","9م أونلاين",null,null,"https://youtu.be/mr6thKx2Zj4https://fb.watch/rc_qOO5Sqk/"]
[76,59,"2024-03-15","مبادرة \"ماذا تعرف عن\"مسجد الأقمرالحلقة الخامسة","مبادرة رمضانية يومية: ماذا تعرف عن مساجد من مصر؟","لجنة الفنون التشكيلية والعمارة","9م أونلاين","9م أونلاين",null,null,"https://youtu.be/RT7YzLe1uXkhttps://fb.watch/rc_pg0iRIm/"]
[77,59,"2024-03-16","مبادرة \"ماذا تعرف عن\"مسجد الجيوشيالحلقة السادسة","مبادرة رمضانية يومية: ماذا تعرف عن مساجد من مصر؟","لجنة الفنون التشكيلية والعمارة","9م أونلاين","9م أونلاين",null,null,"https://youtu.be/KcPDxRU8waUhttps://fb.watch/rc_opFESOB/"]
[78,59,"2024-03-17","مبادرة \"ماذا تعرف عن\"مسجد الصالح طلائعالحلقة السابعة","مبادرة رمضانية يومية: ماذا تعرف عن مساجد من مصر؟","لجنة الفنون التشكيلية والعمارة","9م أونلاين","9م أونلاين",null,null,"https://youtu.be/koJlmROhr9whttps://fb.watch/rc_ntrGtjw/"]
[79,59,"2024-03-17","مائدة مستديرة \" الذكاء الاصطناعي وإرهاب الألفية الثالثة \"","ندوات وأمسيات المجلس الأعلى للثقافة","لجنة الثقافة الرقمية والبنية المعلوماتية الثقافية","9م","9م أونلاين",null,null,"https://youtu.be/MJmbpxZ_X5Qhttps://fb.watch/r2pG4PJnQW/","الذكاء الاصطناعي"]
[80,59,"2024-03-18","احتفالية بمناسبة \"صدور المجلد السابع من موسوعة مصر والقضية الفلسطينية\"","ندوات وأمسيات المجلس الأعلى للثقافة","أمانة المؤتمرات","8م","8م المجلس",null,null,"https://youtu.be/Kza1A4bleRwhttps://fb.watch/r2neVL9W5d/"]
[81,59,"2024-03-18","ندوة: \"حوار ثقافي \"أونلاين","ندوات وأمسيات المجلس الأعلى للثقافة","لجنة السرد القصصي والروائي","9م","9م أونلاين",null,null,"https://youtu.be/tm1F20VZ954https://fb.watch/r2n20n1-BL/","حوار"]
[82,59,"2024-03-18","مبادرة \"ماذا تعرف عن\"مسجد الظاهر بيبرس الحلقة الثامنة","مبادرة رمضانية يومية: ماذا تعرف عن مساجد من مصر؟","لجنة الفنون التشكيلية والعمارة","9م","9م أونلاين",null,null,"https://youtu.be/LhRpYlCyqPUhttps://fb.watch/rc_lV-DaFE/"]
[83,59,"2024-03-19","\"مبادرة وعي بالقانون\" - الحلقة الثامنة دكتور/ عبد الله مغازي","سلسلة بعنوان مبادرة وعي بالقانون","لجنة ثقافة القانون والمواطنة وحقوق الإنسان","8م","8م أونلاين",null,null,"https://youtu.be/P_3DB3AmuMEhttps://fb.watch/r2psXdNpmp/"]
[84,59,"2024-03-19","مبادرة \"ماذا تعرف عن\"مسجد أحمد المهمندارالحلقة التاسعة","مبادرة رمضانية يومية: ماذا تعرف عن مساجد من مصر؟","لجنة الفنون التشكيلية والعمارة","9مأونلاين","9مأونلاين",null,null,"https://youtu.be/7iq3XoYmEnUhttps://fb.watch/rc_iYiZ6m1/"]
[85,59,"2024-03-20","حلقة نقاشية بعنوان: \" حرب رمضان / أكتوبر ١٩٧٣ في القانون الدولي\"","ندوات وأمسيات المجلس الأعلى للثقافة","لجنة ثقافة القانون والمواطنة وحقوق الإنسان","8م","8م المجلس",null,null,"https://youtu.be/VQ3TkKwWi4Ahttps://fb.watch/r2ng5-Ls16/","أكتوبر"]
[86,59,"2024-03-20","مناقشة \"رواية أرواح من رميم\"من مشروعات إبداعات التفرغ للحاصلين على منح التفرغفي مجال الرواية ... بقلم / مروة آدم","ندوات وأمسيات المجلس الأعلى للثقافة","الإدارة المركزية للشئون الأدبية والمسابقات بالتعاون مع أمانة المؤتمرات","8م","8م الندوات",null,null,"https://youtu.be/msO6XEyfDykhttps://fb.watch/r2nX4y03s1/","مناقشة"]
[87,59,"2024-03-20","مبادرة \"ماذا تعرف عن\"مسجد الأمير الماس الحاجب الحلقة العاشرة","مبادرة رمضانية يومية: ماذا تعرف عن مساجد من مصر؟","لجنة الفنون التشكيلية والعمارة","9م أونلاين","9م أونلاين",null,null,"https://youtu.be/Oo-HzTyS1UMhttps://fb.watch/rc_fxA3byp/"]
[88,59,"2024-03-21","الورشة الفنية الأولى ورشة تصنيع فانوس رمضان ضمن برنامج \"أهلا رمضان\" للأطفال والشباب","ندوات وأمسيات المجلس الأعلى للثقافة","لجنة الفنون التشكيلية والعمارة بالتعاون مع كلية الفنون التطبيقية - جامعة حلوان","10ص","10ص كلية الفنون التطبيقية - جامعة حلوان",null,null,null,"شباب"]
[89,59,"2024-03-21","مبادرة \"ماذا تعرف عن\"مسجد الناصر محمد بن قلاوون الحلقة الحادية عشرة","مبادرة رمضانية يومية: ماذا تعرف عن مساجد من مصر؟","لجنة الفنون التشكيلية والعمارة","9م","9م أونلاين",null,null,"https://youtu.be/TWsOnjwN7-Uhttps://fb.watch/rc_cTBWXmw/"]
[90,59,"2024-03-22","مبادرة \"ماذا تعرف عن\"مسجد آق سنقر (المسجد الأزرق)الحلقة الثانية عشرة","مبادرة رمضانية يومية: ماذا تعرف عن مساجد من مصر؟","لجنة الفنون التشكيلية والعمارة","9م أونلاين","9م أونلاين",null,null,"https://youtu.be/5_0nJtBumLAhttps://fb.watch/rc_bseNKPF/"]
[91,59,"2024-03-23","مبادرة \"ماذا تعرف عن\"مسجد طنبغا المارداني الحلقة الثالثة عشرة","مبادرة رمضانية يومية: ماذا تعرف عن مساجد من مصر؟","لجنة الفنون التشكيلية والعمارة","9م أونلاين","9م أونلاين",null,null,"https://youtu.be/MmChkyJmiBUhttps://fb.watch/rc_an5mVCx/"]
[92,59,"2024-03-24","ندوة \"المرأة والإعلام وتحديات العصر\"","ندوات وأمسيات المجلس الأعلى للثقافة","لجنة الشباب بالتعاون مع لجنة الإعلام","8م","8م المجلس",null,null,"https://youtu.be/AjORY2LM3qghttps://fb.watch/r2oILz67ll/","مرأة"]
[93,59,"2024-03-24","مناقشة ديوان \"دفتر العقل\"من مشروعات إبداعات التفرغ للحاصلين على منح التفرغ في مجال الشعر ... للشاعر / أحمد فضل شبلول","ندوات وأمسيات المجلس الأعلى للثقافة","الإدارة المركزية للشئون الأدبية والمسابقات بالتعاون مع أمانة المؤتمرات","9م","9م الندوات",null,null,"https://youtu.be/6w3WcZfPT84https://fb.watch/r2oJJQtb4O/"]
[94,59,"2024-03-24","مبادرة \"ماذا تعرف عن\"مسجد الأمير شيخوالحلقة الرابعة عشرة","مبادرة رمضانية يومية: ماذا تعرف عن مساجد من مصر؟","لجنة الفنون التشكيلية والعمارة","9م أونلاين","9م أونلاين",null,null,"https://youtu.be/ounNtY7iVKIhttps://fb.watch/rc_9glsYKd/"]
[95,59,"2024-03-25","ندوة \"مهارات المترجم الجديد\"","ندوات وأمسيات المجلس الأعلى للثقافة","لجنة الترجمة","7م جامعة","7م جامعة بدر",null,null,"https://youtu.be/SJphxdrRveohttps://fb.watch/r2oS_9e818/"]
[96,59,"2024-03-25","مائدة مستديرة بعنوان \" الألعاب الإلكترونية وتأثيراتها الثقافية صناعة أم ترفيه \"","ندوات وأمسيات المجلس الأعلى للثقافة","لجنة الثقافة الرقمية والبنية المعلوماتية بالتعاون مع بعض لجان المجلس","9م","9م أونلاين",null,null,"https://youtu.be/NmFLJXrYOpIhttps://fb.watch/r2oKCj621N/"]
[97,59,"2024-03-25","مبادرة \"ماذا تعرف عن\"مسجد جمال الدين يوسف الاستادارالحلقة الخامسة عشرة","مبادرة رمضانية يومية: ماذا تعرف عن مساجد من مصر؟","لجنة الفنون التشكيلية والعمارة","9م","9م أونلاين",null,null,"https://youtu.be/8ETdlTO8Ta8https://fb.watch/rc_6Iu5jEO/"]
[98,59,"2024-03-26","\"مبادرة وعي بالقانون\" - الحلقة التاسعةالدكتورة/ نهى بكر","سلسلة بعنوان مبادرة وعي بالقانون","لجنة ثقافة القانون والمواطنة وحقوق الإنسان","7م","7م أونلاين",null,null,"https://youtu.be/fTJAgc5FYdEhttps://fb.watch/rcStG-iYCb/"]
[99,59,"2024-03-26","مبادرة \"ماذا تعرف عن\"مسجد السلطان المؤيد شيخ الحلقة السادسة عشرة","مبادرة رمضانية يومية: ماذا تعرف عن مساجد من مصر؟","لجنة الفنون التشكيلية والعمارة","9م","9م أونلاين",null,null,"https://youtu.be/TlxRuEVIYcQhttps://fb.watch/rcZ_EbmytG/"]
[100,59,"2024-03-27","مبادرة \"ماذا تعرف عن\"مسجد قجماس الإسحاقي الحلقة السابعة عشرة","مبادرة رمضانية يومية: ماذا تعرف عن مساجد من مصر؟","لجنة الفنون التشكيلية والعمارة","9م","9م أونلاين",null,null,"https://youtu.be/gSWUTYr_qHMhttps://fb.watch/rcZZcKhLdJ/"]
[101,59,"2024-03-27","ندوة \"رمضان في الأدب العربي\"","ندوات وأمسيات المجلس الأعلى للثقافة","لجنة الدراسات الأدبية والنقدية واللغوية","9مأونلاين","9مأونلاين",null,null,"https://youtu.be/-P_9MfcAgGkhttps://fb.watch/r4XYh6JKe8/"]
[102,59,"2024-03-28","الورشة الفنية الثانية ورشة تصنيع زينة رمضان ضمن برنامج \"أهلا رمضان\" للأطفال والشباب","ندوات وأمسيات المجلس الأعلى للثقافة","لجنة الفنون التشكيلية والعمارة بالتعاون مع كلية الفنون التطبيقية - جامعة حلوان","10صكلية","10صكلية الفنون التطبيقية - جامعة حلوان",null,null,null,"\nطفل\nشباب"]
[103,59,"2024-03-28","مبادرة \"ماذا تعرف عن\"مسجد سارية الجبلالحلقة الثامنة عشرة","مبادرة رمضانية يومية: ماذا تعرف عن مساجد من مصر؟","لجنة الفنون التشكيلية والعمارة","9مأونلاين","9مأونلاين",null,null,"https://youtu.be/zQAxP0mJjK8https://fb.watch/rcZXLbfcWz/"]
[104,59,"2024-03-29","مبادرة \"ماذا تعرف عن\"مسجد قاني باي الرماحالحلقة التاسعة عشرة","مبادرة رمضانية يومية: ماذا تعرف عن مساجد من مصر؟","لجنة الفنون التشكيلية والعمارة","9م","9م أونلاين",null,null,"https://youtu.be/ZknMheAuYl4https://fb.watch/rcZWTpaq4X/"]
[105,59,"2024-03-30","مبادرة \"ماذا تعرف عن\"مسجد المحموديةالحلقة العشرون","مبادرة رمضانية يومية: ماذا تعرف عن مساجد من مصر؟","لجنة الفنون التشكيلية والعمارة","9م","9م أونلاين",null,null,"https://youtu.be/uynXbF4aH8Yhttps://fb.watch/rcZVAthC8g/"]
[106,59,"2024-03-31","حلقة نقاشية بعنوان \"مدارس أداء السيرة الهلالية\"","ندوات وأمسيات المجلس الأعلى للثقافة","لجنة التراث الثقافي غير المادي \"الفنون الشعبية\" بالتعاون مع الهيئة العامة لقصور الثقافة","8م","8م الندوات",null,null,"https://youtu.be/ilZXANd4w4Yhttps://fb.watch/ralQcLhszd/"]
[107,59,"2024-03-31","مبادرة \"ماذا تعرف عن\"مسجد سنان باشاالحلقة الحادي والعشرين","مبادرة رمضانية يومية: ماذا تعرف عن مساجد من مصر؟","لجنة الفنون التشكيلية والعمارة","9م أونلاين","9م أونلاين",null,null,"https://youtu.be/_fF6ut-Xvushttps://fb.watch/rcZTKHalJC/"]
[108,59,"2024-03-31","مقتطفات شعرية في المديح النبوي يقدمها: الشاعر الدكتور/ أحمد يوسف ويلقي مختارات من قصيدة \"ولد الهدى\" لأمير الشعراء/ أحمد شوقيالحلقة 1","مبادرة في حب الحبيب","لجنة الشعر","10م","10م أونلاين",null,null,"https://youtu.be/nnQyJhYqKREhttps://fb.watch/ramcIR2f9e/"]
[109,59,"2024-04-01","مقتطفات شعرية في المديح النبوييقدمها: الشاعر / عبد الستار سليمويلقي مختارات من همزية الإمام البوصيريالحلقة 2","مبادرة في حب الحبيب","لجنة الشعر","10م","10م أونلاين",null,null,"https://youtu.be/lJdRX8vC9swhttps://fb.watch/rcR6wXF2cE/"]
[110,59,"2024-04-01","مبادرة \"ماذا تعرف عن\"مسجد الملكة صفيةالحلقة الثانية والعشرين","مبادرة رمضانية يومية: ماذا تعرف عن مساجد من مصر؟","لجنة الفنون التشكيلية والعمارة","9م","9م أونلاين",null,null,"https://youtu.be/i-_mj0O2Alkhttps://fb.watch/rcZPLUP-eR/"]
[111,59,"2024-04-02","\"مبادرة وعي بالقانون\" - الحلقة العاشرةالمستشار/ عصام شيحة","سلسلة بعنوان مبادرة وعي بالقانون","لجنة ثقافة القانون والمواطنة وحقوق الإنسان","7م","7م أونلاين",null,null,"https://youtu.be/Tp0dUlAsft8https://fb.watch/rcSrzIL88w/"]
[112,59,"2024-04-02","مبادرة \"ماذا تعرف عن\"مسجد السلحدارالحلقة الثالث والعشرين","مبادرة رمضانية يومية: ماذا تعرف عن مساجد من مصر؟","لجنة الفنون التشكيلية والعمارة","9م","9م أونلاين",null,null,"https://youtu.be/Dm9WJSbHHUw"]
[113,59,"2024-02-04","مقتطفات شعرية في المديح النبويتقدمها: الشاعرة الدكتورة / شيرين العدويوتلقي قصيدة \"خمر المجذوب\"الحلقة 3","مبادرة في حب الحبيب","لجنة الشعر","10م","10م أونلاين",null,null,"https://youtu.be/q1Aie51AJl0https://fb.watch/rcR9tW1SEV/"]
[114,59,"2024-04-03","مبادرة \"ماذا تعرف عن\"مسجد محمد بك أبو الذهبالحلقة الرابعة والعشرين","مبادرة رمضانية يومية: ماذا تعرف عن مساجد من مصر؟","لجنة الفنون التشكيلية والعمارة","9م","9م أونلاين",null,null,"https://youtu.be/0XSswbdncXY"]
[115,59,"2024-04-03","ندوة \"الدراما الرمضانية\"","ندوات وأمسيات المجلس الأعلى للثقافة","لجنة الدراسات الأدبية والنقدية واللغوية","9م","9م المجلس"]
[116,59,"2024-04-03","مقتطفات شعرية في المديح النبوييقدمها: الشاعر الدكتور / علاء جانبويلقي قصيدة \"شجون رمضانية\"الحلقة 4","مبادرة في حب الحبيب","لجنة الشعر","10م","10م أونلاين",null,null,"https://youtu.be/Wh6rBh7IM8o"]
[117,59,"2024-04-04","الورشة الفنية الثالثةورشة التصوير الفوتوغرافي للمساجد والعمارة الإسلاميةضمن برنامج \"أهلا رمضان\" للأطفال والشباب","ندوات وأمسيات المجلس الأعلى للثقافة","لجنة الفنون التشكيلية والعمارة بالتعاون مع كلية الفنون التطبيقية - جامعة حلوان","10صبشار","10صبشار ع المعز لدين الله الفاطمي"]
[118,59,"2024-04-04","الورشة الفنية الرابعةورشة الخط العربيضمن برنامج \"أهلا رمضان\" للأطفال والشباب","ندوات وأمسيات المجلس الأعلى للثقافة","لجنة الفنون التشكيلية والعمارة بالتعاون مع كلية الفنون التطبيقية - جامعة حلوان","10صكلية","10صكلية الفنون التطبيقية - جامعة حلوان"]
[119,59,"2024-04-04","مبادرة \"ماذا تعرف عن\"مسجد محمد عليالحلقة الخامسة والعشرين","مبادرة رمضانية يومية: ماذا تعرف عن مساجد من مصر؟","لجنة الفنون التشكيلية والعمارة","9م","9م أونلاين",null,null,"https://youtu.be/-I00LxxBgjA"]
[120,59,"2024-04-04","ندوة  \"الشباب والتطرف: آليات المواجهة في عصر الذكاء الإصطناعي\"","ندوات وأمسيات المجلس الأعلى للثقافة","لجنة مواجهة التطرف والإرهاب بالتعاون مع لجنة الشباب وبالتعاون مع لجنة الثقافة الرقمية والبنية المعلوماتية الثقافية","9م","9م المجلس"]
[121,59,"2024-04-04","مقتطفات شعرية في المديح النبوييقدمها: الشاعر / إيهاب البشبيشيويلقي مختارات من قصيدة \"نهج البردة\" للإمام البوصيريالحلقة 5","مبادرة في حب الحبيب","لجنة الشعر","10م","10م أونلاين",null,null,"https://youtu.be/OLifHVfu_sA"]
[122,59,"2024-04-05","مبادرة \"ماذا تعرف عن\"مسجد الحسينالحلقة السادسة والعشرين","مبادرة رمضانية يومية: ماذا تعرف عن مساجد من مصر؟","لجنة الفنون التشكيلية والعمارة","9م","9م أونلاين",null,null,"https://youtu.be/JwJTaxkYWU0"]
[123,59,"2024-04-05","مقتطفات شعرية في المديح النبوييقدمها: الشاعر / عبد الستار سليم ويلقي قصيدة من فن الواوالحلقة 6","مبادرة في حب الحبيب","لجنة الشعر","10 مأونلاين","10م أونلاين",null,null,"https://youtu.be/e9JVkhNkOow"]
[124,59,"2024-04-06","مبادرة \"ماذا تعرف عن\"مسجد السيدة نفيسةالحلقة السابعة والعشرين","مبادرة رمضانية يومية: ماذا تعرف عن مساجد من مصر؟","لجنة الفنون التشكيلية والعمارة","9م أونلاين","9م أونلاين",null,null,"https://youtu.be/wgTw6ZrnyRA"]
[125,59,"2024-04-06","مقتطفات شعرية في المديح النبويتقدمها: الشاعرة الدكتورة / شيرين العدويوتلقي مختارات من قصيدة \"نهج البردة\" لاحمد شوقيالحلقة 7","مبادرة في حب الحبيب","لجنة الشعر","10 مأونلاين","10م أونلاين",null,null,"https://youtu.be/3X6uoWT8d8s"]
[126,59,"2024-04-06","المعرض الفني من مخرجات الورش الفنية","ندوات وأمسيات المجلس الأعلى للثقافة","لجنة الفنون التشكيلية والعمارة بالتعاون مع كلية الفنون التطبيقية - جامعة حلوان","بهو","بهو المجلس الأعلى للثقافة",null,null,"https://www.youtube.com/watch?v=RMjk2Wpd_SE"]
[127,59,"2024-04-07","مبادرة \"ماذا تعرف عن\"مسجد السيدة زينبالحلقة الثامنة والعشرين","مبادرة رمضانية يومية: ماذا تعرف عن مساجد من مصر؟","لجنة الفنون التشكيلية والعمارة","9م","9م أونلاين",null,null,"https://youtu.be/PkxeHWYMSjQ"]
[128,59,"2024-04-08","مبادرة \"ماذا تعرف عن\"مسجد الرفاعيالحلقة التاسعة والعشرين","مبادرة رمضانية يومية: ماذا تعرف عن مساجد من مصر؟","لجنة الفنون التشكيلية والعمارة","9م","9م أونلاين",null,null,"https://youtu.be/NIErvcTafUo"]
[129,59,"2024-04-09","مبادرة \"ماذا تعرف عن\"مسجد الفتحالحلقة الثلاثون","مبادرة رمضانية يومية: ماذا تعرف عن مساجد من مصر؟","لجنة الفنون التشكيلية والعمارة","9م","9م أونلاين",null,null,"https://youtu.be/e3xgapKi-FUhttps://www.youtube.com/watch?v=e3xgapKi-FU"]
[130,59,"2024-04-15","ندوة \"سمات الشخصية المصرية في العصرين البطلمى والرومانى\"","ندوات وأمسيات المجلس الأعلى للثقافة","لجنة التاريخ والآثار",10,"10 ص",null,null,"https://fb.watch/rL2Ub9p6fd/https://www.youtube.com/watch?v=3i3SEA9TOaA&t=1s"]
[131,59,"2024-04-15","ندوة: \"حوار ثقافي","ندوات وأمسيات المجلس الأعلى للثقافة","لجنة السرد القصصي والروائي",12,"12 م أونلاين",null,null,"https://fb.watch/rL2YeIpHHo/"]
[132,59,"2024-04-16","ندوة دور المؤسسات التعليمية في تنمية ثقافة القانون و المواطنةوحقوق الإنسان","ندوات وأمسيات المجلس الأعلى للثقافة","جنة ثقافة القانون والمواطنة وحقوق الإنسان",3,"3 م",null,null,"----------------------------------"]
[133,59,"2024-04-17","ندوة \" تغير المناخ.. إلى أين\"","ندوات وأمسيات المجلس الأعلى للثقافة","لجنة الجغرافيا والبيئة",5,"5 م",null,null,"https://fb.watch/rL4Df_KFdk/https://www.youtube.com/watch?v=CycQuZp3YJI"]
[134,59,"2024-04-17","\"فلسطين في المسرح المصري\" - مائدة مستديرة","ندوات وأمسيات المجلس الأعلى للثقافة","لجنة المسرح",5,"5 م",null,null,"https://fb.watch/rL4GqQduER/https://www.youtube.com/watch?v=GHL1XjZ6YZU"]
[135,59,"2024-04-17","أمسية ثقافية \"تواصل\"","ندوات وأمسيات المجلس الأعلى للثقافة","لجنة السرد القصصي والروائي","5م ","5م",null,null,"https://fb.watch/rL4EVFBWfE/https://www.youtube.com/watch?v=PPbnkfNUB0Q"]
[136,59,"2024-04-18","عرض فني \"بأم عيني \"للحكواتي الفلسطيني غنام غنام","ندوات وأمسيات المجلس الأعلى للثقافة","لجنة المسرح",8,"8 م",null,null,"https://fb.watch/rL4Odt5_j1/https://www.youtube.com/watch?v=Ma7ccengVzA"]
[137,59,"2024-04-19","ندوة \"الكتاب بين عصري جوتنبرج و زوكربيرج\"","ندوات وأمسيات المجلس الأعلى للثقافة","لجنة الثقافة الرقمية والبنية المعلوماتية الثقافية",5,"5.5 م",null,null,"https://fb.watch/rL4RkrHRNu/https://www.youtube.com/watch?v=GUmOtCxxSN4"]
[138,59,"2024-04-21","حلقة نقاشية \"المؤسسات ذات الصلة بالثقافة الشعبية المصرية.. الأدوار، الطموحات والمعوقات","ندوات وأمسيات المجلس الأعلى للثقافة","لجنة التراث الثقافي غير المادي \"الفنون الشعبية\"",11,"11 ص",null,null,"https://fb.watch/rL6q_-vTcI/https://youtu.be/gZiWZnUksBg"]
[139,59,"2024-04-21","ندوة: الثورة التكنولوجية ودور المرأة المصرية في تحقيق التنمية المستدامة","ندوات وأمسيات المجلس الأعلى للثقافة","لجنة الثقافة الرقمية والبنية المعلوماتية",10,"10.5ص",null,null,"https://fb.watch/rL55Lsr0h0/https://www.youtube.com/watch?v=G5pe1TLfetg"]
[140,59,"2024-04-22","ندوة سعد مكاوى قاصًا وروائيًا وقراءات قصصية","ندوات وأمسيات المجلس الأعلى للثقافة","لجنة السرد القصصي والروائي",1,"1 ض",null,null,"https://fb.watch/rL6n074z39/https://www.youtube.com/watch?v=6z805bnafiw"]
[141,59,"2024-04-23","أمسية \"مصر .. التشيك \"","ندوات وأمسيات المجلس الأعلى للثقافة","أمانة المؤتمرات - العلاقات الثقافية الخارجية",6,"6 م"]
[142,59,"2024-04-23","جائزة الشارقة للإبداع العربي الدورة السابعه والعشرين اليوم الأول والافتتاح","ندوات وأمسيات المجلس الأعلى للثقافة","أمانة المؤتمرات",10,"10 ص مسرح الهناجر",null,null,"https://fb.watch/rL6oyM_bjV/https://youtu.be/SY2x1c4--5g"]
[143,59,"2024-04-23","مبادرة وعي بالقانون - الحلقة الحادية عشرةنيافة الأنبا أرميا","سلسلة بعنوان مبادرة وعي بالقانون","لجنة ثقافة القانون والمواطنة وحقوق الإنسان",8,"8 م",null,null,"https://fb.watch/rL6YpCAxjE/https://www.youtube.com/watch?v=Hh-FhjPiRXA"]
[144,59,"2024-04-24","مائدة مستديرة\"تجارب التنمية في آسيا\"","ندوات وأمسيات المجلس الأعلى للثقافة","لجنة الإقتصاد والعلوم السياسية",6,"6 م الفنون",null,null,"https://www.youtube.com/watch?v=hIm3JA2ZIxEhttps://www.youtube.com/watch?v=hIm3JA2ZIxE&t=2s"]
[145,59,"2024-04-24","جائزة الشارقة للإبداع العربي الدورة السابعه والعشرين اليوم الثاني","ندوات وأمسيات المجلس الأعلى للثقافة","أمانة المؤتمرات","10ص","10ص المجلس",null,null,"https://fb.watch/rL6oyM_bjV/https://youtu.be/SY2x1c4--5g"]
[146,59,"2024-04-24","تسجيلات نادرة للفقرات الغنائية لمسرحية \"الهلال\" ألحان سيد درويش\"احنا الجنود\" اللحن الأول من مسرحية الهلال-\"هنونى يا خونا\" اللحن الثاني\"حرام عليك والله يا قلبى\" اللحن الثالث\"يا هل ترى ايه الخبر\" اللحن الرابع\"لحن التمرجية\" اللحن الخامس \"فين يا ناس أهل الشهامة\" اللحن السادس\"تعالوا يا جماعة\" اللحن السابع\"برافو برافو علينا\" اللحن الثامن\"الحقوا النار فى المغارة\" اللحن التاسع لحن الختام \"اهتفوا باسم العدالة\" اللحن العاشر",null,"لجنة جمع وتوثيق التراث الموسيقي المشكلة بالمجلس الأعلى للثقافة",null,null,null,null,"https://studio.youtube.com/playlist/PL3bljYjHgo5ziEReGzxZn9AbbVeu11QAT/videos"]
[147,59,"2024-04-25","ندوة: \"سيناء  مهد الأديان والحضارات وأرض التضحيات\"","ندوات وأمسيات المجلس الأعلى للثقافة","لجان المجلس - أمانة المؤتمرات",6,"6 م أون لاين",null,null,"https://fb.watch/rNBKcNPmZU/"]
[148,59,"2024-04-28","ندوة:\" دور الملكية الفكرية في تحقيق أهداف التنمية المستدامة\"","ندوات وأمسيات المجلس الأعلى للثقافة","لجنة حماية الملكية الفكرية",9,"9 ص جامعة القاهرة",null,null,"https://youtu.be/2G384eUkeachttps://fb.watch/rNBEB-VQWH/"]
[149,59,"2024-04-28","حلقة نقاشية بعنوان \"تمويل العمل الثقافي بين الفرص و التحديات\"","ندوات وأمسيات المجلس الأعلى للثقافة","لجنة تطوير الإدارة الثقافية و تشريعاتها","5م","5م الفنون",null,null,"https://youtu.be/J3FjqdCSqSg https://fb.watch/rMlCfdoSbf/"]
[150,59,"2024-04-28","أمسية شعرية نقدية بمناسبة اليوم العالمي للشعر","ندوات وأمسيات المجلس الأعلى للثقافة","لجنة الشعر","6م","6م المؤتمرات",null,null,"https://youtu.be/8AfInr4OQ2Ehttps://fb.watch/rLe5hsUIl3/"]
[151,59,"2024-04-29","مائدة مستديرة بعنوان الشباب والتراث في عصر العولمة","ندوات وأمسيات المجلس الأعلى للثقافة","لجنة الشباب بالتعاون مع لجنة التراث الثقافي غير المادي","5م","5م المجلس",null,null,"https://fb.watch/rMl2sO0G2D/https://youtu.be/ga1tStcX3DI"]
[152,59,"2024-04-29","تحديات طباعة الكتاب في مصر - مائدة مستديرة","ندوات وأمسيات المجلس الأعلى للثقافة","لجنة الكتاب والنشر","5م","5م الفنون",null,null,"https://fb.watch/rNE1PWycm_/"]
[153,59,"2024-04-30","ندوة بعنوان: \" متى وكيف يشعر المواطن المصرى بجودة الحياه \"","ندوات وأمسيات المجلس الأعلى للثقافة","لجنة الفلسفة وعلم الاجتماع والإنثربولوجيا","12 ظالمؤتمرات","12ظالمؤتمرات",null,null,"https://youtu.be/K2j2aPb0B5M",{"$f":"HYPERLINK(K161,\"رابط اليوتيوب\")","v":"رابط اليوتيوب"}]
[154,59,"2024-04-30","ندوة \"الملكية الفكرية وصناعة النشر\"","ندوات وأمسيات المجلس الأعلى للثقافة","لجنة الكتاب والنشر","6م","6م المجلس",null,null,"https://fb.watch/rNE3u3h1xT/ https://youtu.be/TwlKgaRRtwA"]
[155,59,"2024-04-30","مبادرة وعي بالقانون  الحلقة الثانية عشرالدكتور حسن عبد الحميد","سلسلة بعنوان مبادرة وعي بالقانون","لجنة ثقافة القانون والمواطنة وحقوق الإنسان","8م أونلاين","8مأونلاين"]
[156,59,"2024-05-08","الشباب والإعلام مائدة مستديرة","ندوات وأمسيات المجلس الأعلى للثقافة","لجنة الشباب ولجنة الإعلام","6م","6م المجلس"]
[157,59,"2024-05-09","ندوة المواطنة ونبذ ثقافة الكراهية","ندوات وأمسيات المجلس الأعلى للثقافة","لجنة مواجهة التطرف والإرهاب ولجنة ثقافة القانون ولمواطنة وحقوق الإنسان","5م","5م المجلس"]
[158,59,"2024-05-09","ندوة اللغة وأدب الأطفال.. الهوية والإبداع","ندوات وأمسيات المجلس الأعلى للثقافة","لجنة فنون الطفل","5م","5م الفنون"]
[159,59,"2024-05-12","أمسية ثقافية\"الشباب والإبداع وصناعة الوعي\"","ندوات وأمسيات المجلس الأعلى للثقافة","لجنة الشباب","5ممسرح","5م مسرح السامر بالعجوزة"]
[160,59,"2024-05-12","ندوة \" الإعلام والإعلان وحقوق المشاهد","ندوات وأمسيات المجلس الأعلى للثقافة","لجنة الإعلام","7م","7م المجلس"]
[161,59,"2024-05-14","مائدة مستديرة \" الإعلام والثقافة العلمية نحو ثقافة منخفضة للكربون فى مصر والتوعية بالتغيرات المناخية واّثارها \"","ندوات وأمسيات المجلس الأعلى للثقافة","لجنة تنمية الثقافة العلمية ولجنتي الجغرافيا والإعلام","12م","12م الفنون"]
[162,59,"2024-05-14","ندوة \"دور المجتمع الأهلي فى تنمية ثقافة القانون والمواطنة والإنسان\"","ندوات وأمسيات المجلس الأعلى للثقافة","لجنة ثقافة القانون والمواطنة وحقوق الإنسان","6م","6م المجلس"]
[163,59,"2024-05-15","ندوة تواصل","ندوات وأمسيات المجلس الأعلى للثقافة","لجنة السرد القصصي والروائي","5م","5م المؤتمرات"]
[164,59,"2024-05-15","ندوة أساليب الحد من الهدر الغذائي","ندوات وأمسيات المجلس الأعلى للثقافة","لجنة الجغرافيا","5م","5م المجلس"]
[165,59,"2024-05-15","حلقة نقاشية بقصر ثقافة مدينة فوة بمحافظة كفر الشيخ","ندوات وأمسيات المجلس الأعلى للثقافة","لجنة التراث الثقافي غير المادي","قصر","قصر ثقافة فوة بمحافظة كفر الشيخ"]
[166,59,"2024-05-16","حلقة نقاشية بقصر ثقافة مدينة فوة بمحافظة كفر الشيخ","ندوات وأمسيات المجلس الأعلى للثقافة","لجنة التراث الثقافي غير المادي","قصر","قصر ثقافة فوة بمحافظة كفر الشيخ"]
[167,59,"2024-05-16","مائدة مستديرة \" المستقبل ومجتمع مابعد طفرة الذكاء الإصطناعي\" بمناسبة اليوم العالمي لمجتمع المعلوماتية","ندوات وأمسيات المجلس الأعلى للثقافة","لجنة الثقافة الرقمية","7م أونلاين","7مأونلاين"]
[168,59,"2024-05-19","ندوة المحور الفكري لمهرجان إيزيس","ندوات وأمسيات المجلس الأعلى للثقافة","أمانة المؤتمرات","10ص","10ص المؤتمرات"]
[169,59,"2024-05-19","ندوة\" المتاحف ودورها فى تنمية المجتمع\"","ندوات وأمسيات المجلس الأعلى للثقافة","لجنة التاريخ والاّثار ولجنة الفنون التشكيلية","6م","6م المؤتمرات"]
[170,59,"2024-05-20","ندوة حوار","ندوات وأمسيات المجلس الأعلى للثقافة","لجنة السرد القصصي والروائي","12م","12م أونلاين"]
[171,59,"2024-05-21","ندوة مسرح الطفل وصناعة المستقبل","ندوات وأمسيات المجلس الأعلى للثقافة","لجنة الفلسفة","12م","12م المؤتمرات"]
[172,59,"2024-05-21","ندوة\" تكريم رواد التربية وعلم النفس\"","ندوات وأمسيات المجلس الأعلى للثقافة","لجنة التربية وعلم النفس","6م","6م المؤتمرات",null,null,null,null,null,null,null,null,{"$f":"COUNTIF(E167:E185,\"ندوات\")","v":0}]
[173,59,"2024-05-21","ندوة \" أخر تطورات الذكاء الإصطناعي وأخلاقيات الإستخدام\"","ندوات وأمسيات المجلس الأعلى للثقافة","لجنة الثقافة الرقمية","8م","8م أونلاين"]
[174,59,"2024-05-26","حلقة نقاشية \" الإدارة الحكومية للصناعات الثقافية : الضع الراهن واّفاق التطوير","ندوات وأمسيات المجلس الأعلى للثقافة","لجنة تطوير الإدارة الثقافية وتشريعاتها","5م","5م الفنون"]
[175,59,"2024-05-26","ندوة \" الأيام الخوالي\"","ندوات وأمسيات المجلس الأعلى للثقافة","لجنة الترجمة","6م","6م المؤتمرات"]
[176,59,"2024-05-28","ندوة\" نقدية وتأبين الفنان الراحل حازم المستكاوي\"","ندوات وأمسيات المجلس الأعلى للثقافة","لجنة الفنون التشكيلية والعمارة","7م","7م المجلس"]
[177,59,"2024-05-29","ندوة \" السياسات السياحية والوعي المجتمعي\"","ندوات وأمسيات المجلس الأعلى للثقافة","لجنة الإقتصاد والعلوم السياسية","6م","6م الفنون0"]
[178,59,null,null,"مؤتمر"]
[179,59,null,null,"مؤتمر"]
[180,59,null,null,"مؤتمر"]
[181,59,null,null,"مؤتمر"]
[182,59,null,null,"مؤتمر"]
[183,59,null,null,"مؤتمر"]
[184,59,null,null,"مؤتمر"]
[185,59,null,null,"مؤتمر"]
[186,59,null,null,"مؤتمر"]
[187,59,null,null,"مؤتمر"]
[188,59,null,null,"مؤتمر"]
[189,59,null,null,"مؤتمر"]
[190,59,null,null,"مؤتمر"]
[191,59,null,null,"مؤتمر"]
[192,59,null,null,"مؤتمر"]
[193,59,null,null,"مؤتمر"]
[194,59,null,null,"مؤتمر"]
[195,59,null,null,"مؤتمر"]
[196,59,null,null,"مؤتمر"]
[197,59,null,null,"مؤتمر"]
[198,59,null,null,"مؤتمر"]
[199,59,null,null,"مؤتمر"]
[200,59]
[201,59]
[202,59]
[203,59]
[204,59]
[205,59]
[206,59]
[207,59]
[208,59]
[209,59]
[210,59]
[211,59]
[212,59]
[213,59]
[214,59]
[215,59]
[216,59]
[217,59]
[218,59]
[219,59]
[220,59]
[221,59]
[222,59]
[223,59]
[224,59]
[225,59]
[226,59]
[227,59]
[228,59]
[229,59]
[230,59]
[231,59]
[232,59]
[233,59]
[234,59]
[235,59]
[236,59]
[237,59]
[238,59]
[239,59]
[240,59]
[241,59]
[242,59]
[243,59]
[244,59]
[245,59]
[246,59]
[247,59]
[248,59]
[249,59]
[250,59]
[251,59]
[252,59]
[253,59]
[254,59]
[255,59]
[{"$f":"IF(ISBLANK(B264),\"\",SUBTOTAL(3,B$9:B264))","v":256},59]
[257,59]
[258,59]
[259,59]
[260,59]
[261,59]
[262,59]
[263,59]
[264,59]
[265,59]
[266,59]
[267,59]
[268,59]
[269,59]
[270,59]
[271,59]
[272,59]
[273,59]
[274,59]
[275,59]
[276,59]
[277,59]
[278,59]
[279,59]
[280,59]
[281,59]
[282,59]
[283,59]
[284,59]
[285,59]
[286,59]
[287,59]
[288,59]
[289,59]
[290,59]
[291,59]
[292,59]
[293,59]
[294,59]
[295,59]
[296,59]
[297,59]
[298,59]
[299,59]
[300,59]
[301,59]
[302,59]
[303,59]
[304,59]
[305,59]
[306,59]
[307,59]
[308,59]
[309,59]
[310,59]
[311,59]
[312,59]
[313,59]
[314,59]
[315,59]
[316,59]
[317,59]
[318,59]
[319,59]
[320,59]
[321,59]
[322,59]
[323,59]
[324,59]
[325,59]
[326,59]
[327,59]
[328,59]
[329,59]
[330,59]
[331,59]
[332,59]
[333,59]
[334,59]
[335,59]
[336,59]
[337,59]
[338,59]
[339,59]
[340,59]
[341,59]
[342,59]
[343,59]
[344,59]
[345,59]
[346,59]
[347,59]
[348,59]
[349,59]
[350,59]
[351,59]
[352,59]
[353,59]
[354,59]
[355,59]
[356,59]
[357,59]
[358,59]
[359,59]
[360,59]
[361,59]
[362,59]
[363,59]
[364,59]
[365,59]
[366,59]
[367,59]
[368,59]
[369,59]
[370,59]
[371,59]
[372,59]
[373,59]
[374,59]
[375,59]
[376,59]
[377,59]
[378,59]
[379,59]
[380,59]
[381,59]
[382,59]
[383,59]
[384,59]
[385,59]
[386,59]
[387,59]
[388,59]
[389,59]
[390,59]
[391,59]
[392,59]
[393,59]
[394,59]
[395,59]
[396,59]
[397,59]
[398,59]
[399,59]
[400,59]
[401,59]
[402,59]
[403,59]
[404,59]
[405,59]
[406,59]
[407,59]
[408,59]
[409,59]
[410,59]
[411,59]
[412,59]
[413,59]
[414,59]
[415,59]
[416,59]
[417,59]
[418,59]
[419,59]
[420,59]
[421,59]
[422,59]
[423,59]
[424,59]
[425,59]
[426,59]
[427,59]
[428,59]
[429,59]
[430,59]
[431,59]
[432,59]
[433,59]
[434,59]
[435,59]
[436,59]
[437,59]
[438,59]
[439,59]
[440,59]
[441,59]
[442,59]
[443,59]
[444,59]
[445,59]
[446,59]
[447,59]
[448,59]
[449,59]
[450,59]
[451,59]
[452,59]
[453,59]
[454,59]
[455,59]
[456,59]
[457,59]
[458,59]
[459,59]
[460,59]
[461,59]
[462,59]
[463,59]
[464,59]
[465,59]
[466,59]
[467,59]
[468,59]
[469,59]
[470,59]
[471,59]
[472,59]
[473,59]
[474,59]
[475,59]
[476,59]
[477,59]
[478,59]
[479,59]
[480,59]
[481,59]
[482,59]
[483,59]
[484,59]
[485,59]
[486,59]
[487,59]
[488,59]
[489,59]
[490,59]
[491,59]
[492,59]
[493,59]
[494,59]
[495,59]
[496,59]
[497,59]
[498,59]
[499,59]
[500,59]

{"sheet":"الانشطة","index":1,"n_rows":10,"n_cols":11,"rows_kept":10,"cut":false,"hidden":false,"merged":[[5,8,5,9]]}
[]
[null,null," من تاريخ","2023-01-05","الى تاريخ","2023-01-08"]
[]
[null,null,null,null,"عنوان النشاط"]
[]
["م","الرقم","تاريخ النشاط","اسم النشاط","منفذ النشاط","الجهة المنظمة","موعد النشاط","مكان النشاط","رابط النشاط",null,"ملاحظات"]
[1,1,"2023-01-05","\"خواطر من مؤتمر المناخ cop27\"\nم/ محمد عزام\nالحلقة الخامسة والعشرون","سلسلة ثقافة تك","لجنة الثقافة الرقمية والبنية المعلوماتية الثقافية بالتعاون مع أمانة المؤتمرات","21:00:00","أونلاين"]
[2,2,"2023-01-06","ندوة \"عالم نجيب محفوظ .. قيم باقية\"","ندوات وأمسيات المجلس الأعلى للثقافة","لجنة الدراسات الادبية والنقدية واللغوية بالتعاون مع لجنة السرد القصصي والروائي","22:00:00","أونلاين"]
[3,3,"2023-01-07","\"خواطر من مؤتمر المناخ cop27\"\nم/ محمد عزام\nالحلقة الخامسة والعشرون","سلسلة ثقافة تك","لجنة الثقافة الرقمية والبنية المعلوماتية الثقافية بالتعاون مع أمانة المؤتمرات","23:00:00","أونلاين"]
[4,4,"2023-01-08","ندوة \"عالم نجيب محفوظ .. قيم باقية\"","ندوات وأمسيات المجلس الأعلى للثقافة","لجنة الدراسات الادبية والنقدية واللغوية بالتعاون مع لجنة السرد القصصي والروائي",0.999999999999999,"أونلاين"]

{"sheet":"إحصائيات","index":2,"n_rows":11,"n_cols":3,"rows_kept":11,"cut":false,"hidden":false,"merged":[]}
["الرقم","منفذ النشاط","العدد"]
[{"$f":"ROW()-1","v":1},"ندوات وأمسيات",{"$f":"COUNTIF(Sheet1!E3:E4000,\"*\"& B2 &\"*\")","v":121}]
[2,"سلسلة ثقافة تك",{"$f":"COUNTIF(Sheet1!E4:E4001,\"*\"& B3 &\"*\")","v":2}]
[3,"مبادرة وعي",{"$f":"COUNTIF(Sheet1!E5:E4002,\"*\"& B4 &\"*\")","v":12}]
[4,"سلسلة كل يوم شاعر",{"$f":"COUNTIF(Sheet1!E6:E4003,\"*\"& B5 &\"*\")","v":0}]
[5,"مؤتمر",{"$f":"COUNTIF(Sheet1!E7:E4004,\"*\"& B6 &\"*\")","v":22}]
[6,"ملتقى",{"$f":"COUNTIF(Sheet1!E8:E4005,\"*\"& B7 &\"*\")","v":0}]
[7,"مبادرة في حب الحبيب",{"$f":"COUNTIF(Sheet1!E9:E4006,\"*\"& B8 &\"*\")","v":7}]
[8,"ملتقى",{"$f":"COUNTIF(Sheet1!E11:E4008,\"*\"& B9 &\"*\")","v":0}]
[9,"مساجد من مصر",{"$f":"COUNTIF(Sheet1!E12:E4009,\"*\"& B10 &\"*\")","v":31}]
[10,"عدد الفعاليات الكلي",{"$f":"SUM(C2:C10)","v":195}]

{"sheet":"تقرير النشاط","index":3,"n_rows":9,"n_cols":11,"rows_kept":9,"cut":false,"hidden":true,"merged":[[1,3,1,9],[4,8,4,9]]}
[]
[null,null,null,"عنوان النشاط"]
[]
[]
["م","الرقم","تاريخ النشاط","اسم النشاط","منفذ النشاط","الجهة المنظمة","موعد النشاط","مكان النشاط","رابط النشاط",null,"ملاحظات"]
[1,1,"2023-01-05","\"خواطر من مؤتمر المناخ cop27\"\nم/ محمد عزام\nالحلقة الخامسة والعشرون","سلسلة ثقافة تك","لجنة الثقافة الرقمية والبنية المعلوماتية الثقافية بالتعاون مع أمانة المؤتمرات","21:00:00","أونلاين"]
[2,2,"2023-01-06","ندوة \"عالم نجيب محفوظ .. قيم باقية\"","ندوات وأمسيات المجلس الأعلى للثقافة","لجنة الدراسات الادبية والنقدية واللغوية بالتعاون مع لجنة السرد القصصي والروائي","22:00:00","أونلاين"]
[3,3,"2023-01-07","\"خواطر من مؤتمر المناخ cop27\"\nم/ محمد عزام\nالحلقة الخامسة والعشرون","سلسلة ثقافة تك","لجنة الثقافة الرقمية والبنية المعلوماتية الثقافية بالتعاون مع أمانة المؤتمرات","23:00:00","أونلاين"]
[4,4,"2023-01-08","ندوة \"عالم نجيب محفوظ .. قيم باقية\"","ندوات وأمسيات المجلس الأعلى للثقافة","لجنة الدراسات الادبية والنقدية واللغوية بالتعاون مع لجنة السرد القصصي والروائي",0.999999999999999,"أونلاين"]